{"text_format":"3","workbook":"xlsx","n_sheets":1,"sheets":["Proposition"],"not_rendered":{"images":1,"defined_names":20},"read":"whole","date_system":"1900"}

{"sheet":"Proposition","index":0,"n_rows":39,"n_cols":7,"rows_kept":39,"merged":[[0,1,3,1],[0,3,0,6],[1,4,1,6],[2,4,2,6],[32,3,35,4],[36,3,36,6],[37,3,37,5],[38,3,38,5]]}
[{"$nulls":3},"PROPOSITION DE CONSTRUCTION"]
[{"$nulls":3},"Nom de la société","| Entrez l’adresse postale de la société dans cette cellule."]
[{"$nulls":3},"Téléphone","| Entrez le numéro de télécopie de la société et l’adresse e-mail de la personne à contacter dans cette cellule."]
[{"$nulls":3},"QUANTITÉ","DESCRIPTION","PRIX UNITAIRE","MONTANT"]
[null,"CLIENT",null,10,"Article 1",{"v":165,"d":"165.00 €"},{"$f":"IFERROR(Postes[[#This Row],[QUANTITÉ]]*Postes[[#This Row],[PRIX UNITAIRE]], \"\")","v":{"v":1650,"d":"1,650.00 €"}}]
[null,"Entrez le nom du client dans cette cellule.",null,21,"Article 2",{"v":40,"d":"40.00 €"},{"$f":"IFERROR(Postes[[#This Row],[QUANTITÉ]]*Postes[[#This Row],[PRIX UNITAIRE]], \"\")","v":{"v":840,"d":"840.00 €"}}]
[null,"NUMÉRO DU DEVIS",null,5,"Article 3",{"v":10.5,"d":"10.50 €"},{"$f":"IFERROR(Postes[[#This Row],[QUANTITÉ]]*Postes[[#This Row],[PRIX UNITAIRE]], \"\")","v":{"v":52.5,"d":"52.50 €"}}]
[null,"C-1234",null,164,"Article 4",{"v":2.75,"d":"2.75 €"},{"$f":"IFERROR(Postes[[#This Row],[QUANTITÉ]]*Postes[[#This Row],[PRIX UNITAIRE]], \"\")","v":{"v":451,"d":"451.00 €"}}]
[null,"DATE",null,6,"Article 5",{"v":12,"d":"12.00 €"},{"$f":"IFERROR(Postes[[#This Row],[QUANTITÉ]]*Postes[[#This Row],[PRIX UNITAIRE]], \"\")","v":{"v":72,"d":"72.00 €"}}]
[null,{"$f":"TODAY()","v":"2018-11-15"},null,18,"Article 6",{"v":5.5,"d":"5.50 €"},{"$f":"IFERROR(Postes[[#This Row],[QUANTITÉ]]*Postes[[#This Row],[PRIX UNITAIRE]], \"\")","v":{"v":99,"d":"99.00 €"}}]
[null,"ADRESSE",null,1,"Article 7",{"v":25,"d":"25.00 €"},{"$f":"IFERROR(Postes[[#This Row],[QUANTITÉ]]*Postes[[#This Row],[PRIX UNITAIRE]], \"\")","v":{"v":25,"d":"25.00 €"}}]
[null,"Entrez l’adresse postale du client dans cette cellule.",{"$nulls":4},{"$f":"IFERROR(Postes[[#This Row],[QUANTITÉ]]*Postes[[#This Row],[PRIX UNITAIRE]], \"\")","v":{"v":0,"d":"0.00 €"}}]
[null,"CODE POSTAL/VILLE/PAYS",{"$nulls":4},{"$f":"IFERROR(Postes[[#This Row],[QUANTITÉ]]*Postes[[#This Row],[PRIX UNITAIRE]], \"\")","v":{"v":0,"d":"0.00 €"}}]
[null,"Entrez le code postal, la ville et le pays du client dans cette cellule.",{"$nulls":4},{"$f":"IFERROR(Postes[[#This Row],[QUANTITÉ]]*Postes[[#This Row],[PRIX UNITAIRE]], \"\")","v":{"v":0,"d":"0.00 €"}}]
[null,"TÉLÉPHONE",{"$nulls":4},{"$f":"IFERROR(Postes[[#This Row],[QUANTITÉ]]*Postes[[#This Row],[PRIX UNITAIRE]], \"\")","v":{"v":0,"d":"0.00 €"}}]
[null,"Entrez le numéro de téléphone du client dans cette cellule.",{"$nulls":4},{"$f":"IFERROR(Postes[[#This Row],[QUANTITÉ]]*Postes[[#This Row],[PRIX UNITAIRE]], \"\")","v":{"v":0,"d":"0.00 €"}}]
[null,"E-MAIL",{"$nulls":4},{"$f":"IFERROR(Postes[[#This Row],[QUANTITÉ]]*Postes[[#This Row],[PRIX UNITAIRE]], \"\")","v":{"v":0,"d":"0.00 €"}}]
[null,"Entrez l’adresse e-mail du client dans cette cellule.",{"$nulls":4},{"$f":"IFERROR(Postes[[#This Row],[QUANTITÉ]]*Postes[[#This Row],[PRIX UNITAIRE]], \"\")","v":{"v":0,"d":"0.00 €"}}]
[null,"VENDEUR",{"$nulls":4},{"$f":"IFERROR(Postes[[#This Row],[QUANTITÉ]]*Postes[[#This Row],[PRIX UNITAIRE]], \"\")","v":{"v":0,"d":"0.00 €"}}]
[null,"Entrez le nom du vendeur dans cette cellule.",{"$nulls":4},{"$f":"IFERROR(Postes[[#This Row],[QUANTITÉ]]*Postes[[#This Row],[PRIX UNITAIRE]], \"\")","v":{"v":0,"d":"0.00 €"}}]
[null,"PROJET",{"$nulls":4},{"$f":"IFERROR(Postes[[#This Row],[QUANTITÉ]]*Postes[[#This Row],[PRIX UNITAIRE]], \"\")","v":{"v":0,"d":"0.00 €"}}]
[null,"Entrez le nom du projet de cette cellule.",{"$nulls":4},{"$f":"IFERROR(Postes[[#This Row],[QUANTITÉ]]*Postes[[#This Row],[PRIX UNITAIRE]], \"\")","v":{"v":0,"d":"0.00 €"}}]
[null,"AUTEUR DE LA PROPOSITION :",{"$nulls":4},{"$f":"IFERROR(Postes[[#This Row],[QUANTITÉ]]*Postes[[#This Row],[PRIX UNITAIRE]], \"\")","v":{"v":0,"d":"0.00 €"}}]
[null,"Entrez le nom de l’auteur de la proposition dans cette cellule.",{"$nulls":4},{"$f":"IFERROR(Postes[[#This Row],[QUANTITÉ]]*Postes[[#This Row],[PRIX UNITAIRE]], \"\")","v":{"v":0,"d":"0.00 €"}}]
[null,"ATTENTION",{"$nulls":4},{"$f":"IFERROR(Postes[[#This Row],[QUANTITÉ]]*Postes[[#This Row],[PRIX UNITAIRE]], \"\")","v":{"v":0,"d":"0.00 €"}}]
[null,"Entrez le nom du destinataire de cette proposition dans cette cellule.",{"$nulls":4},{"$f":"IFERROR(Postes[[#This Row],[QUANTITÉ]]*Postes[[#This Row],[PRIX UNITAIRE]], \"\")","v":{"v":0,"d":"0.00 €"}}]
[null,"CONDITIONS DE PAIEMENT",{"$nulls":4},{"$f":"IFERROR(Postes[[#This Row],[QUANTITÉ]]*Postes[[#This Row],[PRIX UNITAIRE]], \"\")","v":{"v":0,"d":"0.00 €"}}]
[null,"30 jours nets",{"$nulls":4},{"$f":"IFERROR(Postes[[#This Row],[QUANTITÉ]]*Postes[[#This Row],[PRIX UNITAIRE]], \"\")","v":{"v":0,"d":"0.00 €"}}]
[null,"DATE D’ÉCHÉANCE",{"$nulls":4},{"$f":"IFERROR(Postes[[#This Row],[QUANTITÉ]]*Postes[[#This Row],[PRIX UNITAIRE]], \"\")","v":{"v":0,"d":"0.00 €"}}]
[null,{"$f":"TODAY()+30","v":"2018-12-15"},{"$nulls":4},{"$f":"IFERROR(Postes[[#This Row],[QUANTITÉ]]*Postes[[#This Row],[PRIX UNITAIRE]], \"\")","v":{"v":0,"d":"0.00 €"}}]
[{"$nulls":5},"SOUS-TOTAL",{"$f":"SUBTOTAL(109,Postes[MONTANT])","v":{"v":3189.5,"d":"3,189.50 €"}}]
[{"$nulls":3},"CETTE PROPOSITION INCLUT LES CONDITIONS SUIVANTES :",null,"TAUX TVA ",{"v":0.0775,"d":"7.75%"}]
[{"$nulls":3},"Entrez les conditions ici.",null,"TVA ",{"$f":"IFERROR(SOUS_TOTAL*TauxTVA, \"\")","v":{"v":247.18625,"d":"247.19 €"}}]
[{"$nulls":5},"AUTRES "]
[{"$nulls":5},"TOTAL ",{"$f":"IFERROR(SOUS_TOTAL+G33+Autres, \"\")","v":{"v":3436.68625,"d":"3,436.69 €"}}]
[]
[{"$nulls":3},"Signez ci-dessous pour accepter le devis :"]
[]
[{"$nulls":3},"Représentant autorisé",null,null,"Date"]